[Event "55th Biel Festival GMT Rapid 2022"]
[Site "Biel"]
[Date "2022.07.12"]
[Round "5.3"]
[White "Abdusattorov, Nodirbek"]
[Black "Naiditsch, Arkadij"]
[Result "0-1"]
[ECO "C02"]
[WhiteElo "2670"]
[BlackElo "2600"]
[Annotator "ChessBase"]
[PlyCount "121"]
[EventDate "2022.07.12"]
[EventType "tourn"]
[EventCountry "SUI"]
[SourceTitle "playchess.com"]
[Source "ChessBase"]
[SourceQuality "1"]
[TimeControl "900+5"]

1. e4 {[%emt 0:00:03]} e6 {[%emt 0:00:01]} 2. d4 {[%emt 0:00:04]} d5 {[%emt 0:00:02]} 3. e5 {[%emt 0:00:02]} c5 {[%emt 0:00:03]} 4. c3 {[%emt 0:00:02]} Nc6 {[%emt 0:00:02]} 5. Nf3 {[%emt 0:00:02]} Qb6 {[%emt 0:00:02]} 6. a3 {[%emt 0:00:03]} Bd7 {[%emt 0:00:02]} 7. b4 {[%emt 0:00:21]} cxd4 {[%emt 0:00:03]} 8. cxd4 {[%emt 0:00:01]} Rc8 {[%emt 0:00:10]} 9. Bb2 {[%emt 0:00:17]} Nh6 {[%emt 0:01:15]} 10. Nc3 {[%emt 0:01:56]} Na5 {[%emt 0:01:48]} 11. Na4 {[%emt 0:01:14]} Qc6 {[%emt 0:00:13]} 12. Nc5 {[%emt 0:00:03]} Nc4 {[%emt 0:00:23]} 13. Bc1 {[%emt 0:00:11]} b6 {[%emt 0:02:51]} 14. Nxd7 {[%emt 0:00:24]} Qxd7 {[%emt 0:00:03]} 15. Bd3 {[%emt 0:03:08]} Nf5 {[%emt 0:00:06]} 16. O-O {[%emt 0:00:07]} h5 {[%emt 0:00:27]} 17. Bxf5 {[%emt 0:00:10]} exf5 {[%emt 0:00:03]} 18. Re1 {[%emt 0:00:15]} Be7 {[%emt 0:00:28]} 19. Bg5 {[%emt 0:00:28]} O-O {[%emt 0:02:03]} 20. h4 {[%emt 0:00:13]} Rfe8 {[%emt 0:01:42]} 21. Bxe7 {[%emt 0:00:11]} Rxe7 {[%emt 0:00:12]} 22. Ng5 {[%emt 0:00:34]} g6 {[%emt 0:00:04]} 23. Nh3 {[%emt 0:01:15]} f6 {[%emt 0:03:17]} 24. Nf4 {[%emt 0:00:51]} Kh7 {[%emt 0:00:01]} 25. Qf3 {[%emt 0:03:08]} fxe5 {[%emt 0:00:13]} 26. Nxd5 {[%emt 0:00:22]} Nd2 {[%emt 0:00:15]} 27. Nf6+ {[%emt 0:00:50]} Kg7 {[%emt 0:00:02]} 28. Nxd7 {[%emt 0:00:13]} Nxf3+ {[%emt 0:00:02]} 29. gxf3 {[%emt 0:00:00]} Rxd7 {[%emt 0:00:01]} 30. dxe5 {[%emt 0:00:03]} Rd3 {[%emt 0:00:11]} 31. Kg2 {[%emt 0:00:23]} Kf7 {[%emt 0:00:18]} 32. Rad1 {[%emt 0:00:26]} Rcc3 {[%emt 0:00:23]} 33. a4 {[%emt 0:00:06]} Ke6 {[%emt 0:00:12]} 34. f4 {[%emt 0:00:01]} Rxd1 {[%emt 0:00:33]} 35. Rxd1 {[%emt 0:00:01]} Rc4 {[%emt 0:00:01]} 36. Rd6+ {[%emt 0:00:04]} Ke7 {[%emt 0:00:01]} 37. Kg3 {[%emt 0:00:18]} Rxb4 {[%emt 0:00:10]} 38. a5 {[%emt 0:00:01]} Rb3+ {[%emt 0:00:11]} 39. f3 {[%emt 0:00:01]} Rb1 {[%emt 0:00:03]} 40. Kg2 {[%emt 0:00:16]} Rb2+ {[%emt 0:00:01]} 41. Kg3 {[%emt 0:00:06]} Rb1 {[%emt 0:00:01]} 42. a6 {[%emt 0:00:05]} Ra1 {[%emt 0:00:08]} 43. Kf2 {[%emt 0:00:05]} Rxa6 {[%emt 0:00:05]} 44. Rxg6 {[%emt 0:00:01]} Ra1 {[%emt 0:00:21]} 45. Rg5 {[%emt 0:00:06]} a5 {[%emt 0:00:07]} 46. Rxh5 {[%emt 0:00:06]} a4 {[%emt 0:00:03]} 47. Rh7+ {[%emt 0:00:02]} Kf8 {[%emt 0:00:07]} 48. h5 {[%emt 0:00:05]} a3 {[%emt 0:00:03]} 49. Ra7 {[%emt 0:00:05]} b5 {[%emt 0:00:02]} 50. e6 {[%emt 0:00:15]} b4 {[%emt 0:00:02]} 51. h6 {[%emt 0:00:05]} Rh1 {[%emt 0:00:03]} 52. Kg2 {[%emt 0:00:09]} Rxh6 {[%emt 0:00:04]} 53. Ra4 {[%emt 0:00:02]} Rxe6 {[%emt 0:00:12]} 54. Rxb4 {[%emt 0:00:02]} Ra6 {[%emt 0:00:02]} 55. Rb1 {[%emt 0:00:02]} a2 {[%emt 0:00:02]} 56. Ra1 {[%emt 0:00:02]} Ke7 {[%emt 0:00:09]} 57. Kf2 {[%emt 0:00:16]} Kd6 {[%emt 0:00:09]} 58. Ke3 {[%emt 0:00:01]} Kd5 {[%emt 0:00:08]} 59. Kd3 {[%emt 0:00:07]} Ra3+ {[%emt 0:00:01]} 60. Ke2 {[%emt 0:00:07]} Kd4 {[%emt 0:00:04]} 61. Kf2 {[%emt 0:00:07]} 0-1

[Event "55th Biel Festival GMT Rapid 2022"]
[Site "Biel"]
[Date "2022.07.12"]
[Round "7.4"]
[White "Abdusattorov, Nodirbek"]
[Black "Kamsky, Gata"]
[Result "1-0"]
[ECO "C54"]
[WhiteElo "2688"]
[BlackElo "2655"]
[Annotator "ChessBase"]
[PlyCount "106"]
[EventDate "2022.07.12"]
[EventType "tourn"]
[EventCountry "SUI"]
[SourceTitle "playchess.com"]
[Source "ChessBase"]
[SourceQuality "1"]
[TimeControl "900+5"]

1. e4 {[%emt 0:00:02]} e5 {[%emt 0:00:02]} 2. Nf3 {[%emt 0:00:02]} Nc6 {[%emt 0:00:02]} 3. Bc4 {[%emt 0:00:05]} Bc5 {[%emt 0:00:17]} 4. d3 {[%emt 0:00:09]} Nf6 {[%emt 0:00:04]} 5. O-O {[%emt 0:00:06]} a6 {[%emt 0:00:06]} 6. a4 {[%emt 0:00:22]} d6 {[%emt 0:00:09]} 7. Bg5 {[%emt 0:00:00]} h6 {[%emt 0:00:06]} 8. Bh4 {[%emt 0:00:00]} Ba7 {[%emt 0:00:19]} 9. c3 {[%emt 0:00:02]} O-O {[%emt 0:00:37]} 10. Na3 {[%emt 0:00:02]} Re8 {[%emt 0:00:06]} 11. b4 {[%emt 0:00:35]} Be6 {[%emt 0:00:06]} 12. Kh1 {[%emt 0:00:21]} Bxc4 {[%emt 0:00:30]} 13. Nxc4 {[%emt 0:00:02]} Re6 {[%emt 0:00:02]} 14. Nfd2 {[%emt 0:01:18]} d5 {[%emt 0:00:33]} 15. Bxf6 {[%emt 0:01:32]} Rxf6 {[%emt 0:00:02]} 16. exd5 {[%emt 0:00:01]} Qxd5 {[%emt 0:00:03]} 17. Ne4 {[%emt 0:00:02]} Re6 {[%emt 0:01:07]} 18. Qf3 {[%emt 0:00:34]} Rd8 {[%emt 0:00:04]} 19. Ne3 {[%emt 0:00:14]} Qd7 {[%emt 0:00:54]} 20. Rad1 {[%emt 0:00:58]} Ne7 {[%emt 0:00:11]} 21. a5 {[%emt 0:00:10]} Rc6 {[%emt 0:00:31]} 22. g4 {[%emt 0:01:37]} Bxe3 {[%emt 0:03:23]} 23. fxe3 {[%emt 0:00:02]} f6 {[%emt 0:00:01]} 24. d4 {[%emt 0:00:25]} exd4 {[%emt 0:00:07]} 25. exd4 {[%emt 0:00:14]} b6 {[%emt 0:00:08]} 26. d5 {[%emt 0:01:22]} Nxd5 {[%emt 0:01:56]} 27. Rd4 {[%emt 0:01:33]} Qe7 {[%emt 0:00:52]} 28. Rfd1 {[%emt 0:01:20]} Re6 {[%emt 0:00:19]} 29. axb6 {[%emt 0:01:34]} cxb6 {[%emt 0:00:12]} 30. Ng3 {[%emt 0:00:33]} Re1+ {[%emt 0:00:03]} 31. Rxe1 {[%emt 0:00:13]} Qxe1+ {[%emt 0:00:02]} 32. Nf1 {[%emt 0:00:05]} Qe5 {[%emt 0:01:59]} 33. Ne3 {[%emt 0:00:00]} Nxe3 {[%emt 0:00:03]} 34. Rxd8+ {[%emt 0:00:00]} Kh7 {[%emt 0:00:02]} 35. Rd3 {[%emt 0:00:04]} Nc4 {[%emt 0:00:04]} 36. Qf5+ {[%emt 0:00:02]} Qxf5 {[%emt 0:01:13]} 37. gxf5 {[%emt 0:00:01]} h5 {[%emt 0:00:01]} 38. Kg2 {[%emt 0:00:17]} Kh6 {[%emt 0:00:07]} 39. h4 {[%emt 0:00:01]} g6 {[%emt 0:00:02]} 40. Kg3 {[%emt 0:00:14]} gxf5 {[%emt 0:00:10]} 41. Rd4 {[%emt 0:00:05]} b5 {[%emt 0:00:07]} 42. Kf4 {[%emt 0:00:06]} Kg6 {[%emt 0:00:01]} 43. Rd8 {[%emt 0:00:11]} Kf7 {[%emt 0:00:41]} 44. Ra8 {[%emt 0:00:01]} Nb6 {[%emt 0:00:18]} 45. Rxa6 {[%emt 0:00:11]} Nd5+ {[%emt 0:00:02]} 46. Kxf5 {[%emt 0:00:02]} Nxc3 {[%emt 0:00:10]} 47. Rxf6+ {[%emt 0:00:26]} Ke7 {[%emt 0:00:07]} 48. Ke5 {[%emt 0:00:07]} Na2 {[%emt 0:00:08]} 49. Rf4 {[%emt 0:00:04]} Nc3 {[%emt 0:00:02]} 50. Rd4 {[%emt 0:00:13]} Kf7 {[%emt 0:00:45]} 51. Rd7+ {[%emt 0:00:01]} Kg6 {[%emt 0:00:05]} 52. Rb7 {[%emt 0:00:01]} Kh6 {[%emt 0:00:08]} 53. Rb6+ {[%emt 0:00:02]} Kg7 {[%emt 0:00:01]} 1-0